[Event "*** Titled Tuesday Blitz"]
[Site "Chess.com"]
[Date "2021.04.06"]
[Round "7"]
[White "vrekhson"]
[Black "McCarthyStone"]
[Result "0-1"]
[WhiteElo "2212"]
[BlackElo "2399"]
[TimeControl "180+1"]
[EndTime "11:17:50 PDT"]
[Termination "McCarthyStone won on time"]

1. e4 {[%clk 0:03:00.9]} 1... d6 {[%clk 0:02:58.8]} 2. Nc3 {[%clk 0:03:00]} 2...
Nf6 {[%clk 0:02:59.7]} 3. g3 {[%clk 0:02:58.2]} 3... c6 {[%clk 0:02:58]} 4. Bg2
{[%clk 0:02:58.4]} 4... g6 {[%clk 0:02:58.9]} 5. Nge2 {[%clk 0:02:58.2]} 5...
Bg7 {[%clk 0:02:59.8]} 6. d3 {[%clk 0:02:58.6]} 6... O-O {[%clk 0:03:00.7]} 7.
O-O {[%clk 0:02:58.4]} 7... b5 {[%clk 0:03:01]} 8. f4 {[%clk 0:02:50.4]} 8...
Qb6+ {[%clk 0:03:00.1]} 9. Kh1 {[%clk 0:02:49.9]} 9... Ng4 {[%clk 0:02:58.3]}
10. d4 {[%clk 0:02:35.2]} 10... b4 {[%clk 0:02:47.9]} 11. Na4 {[%clk 0:02:25.4]}
11... Qa6 {[%clk 0:02:46.3]} 12. b3 {[%clk 0:02:24.2]} 12... e5 {[%clk
0:02:37.4]} 13. h3 {[%clk 0:02:15.8]} 13... exd4 {[%clk 0:02:37.8]} 14. hxg4
{[%clk 0:01:02.7]} 14... Bxg4 {[%clk 0:02:36.5]} 15. Re1 {[%clk 0:00:53.4]}
15... d3 {[%clk 0:02:36.2]} 16. cxd3 {[%clk 0:00:51.5]} 16... Bxa1 {[%clk
0:02:35.7]} 17. Qc2 {[%clk 0:00:38.7]} 17... Bg7 {[%clk 0:02:29.9]} 18. Bb2
{[%clk 0:00:35.9]} 18... Nd7 {[%clk 0:02:24.1]} 19. Bxg7 {[%clk 0:00:34]} 19...
Kxg7 {[%clk 0:02:25]} 20. Nd4 {[%clk 0:00:33.4]} 20... Rac8 {[%clk 0:02:20.1]}
21. Rc1 {[%clk 0:00:28.9]} 21... Nf6 {[%clk 0:02:18]} 22. Qd2 {[%clk 0:00:28.7]}
22... Qa5 {[%clk 0:02:15.2]} 23. Rc2 {[%clk 0:00:25.4]} 23... Qh5+ {[%clk
0:02:14.6]} 24. Kg1 {[%clk 0:00:25.2]} 24... c5 {[%clk 0:02:13.9]} 25. Nb5
{[%clk 0:00:23.4]} 25... Ne8 {[%clk 0:02:11.2]} 26. Nxa7 {[%clk 0:00:22.9]}
26... Ra8 {[%clk 0:02:09.7]} 27. Nb5 {[%clk 0:00:23]} 27... Bf3 {[%clk
0:02:08.3]} 28. d4 {[%clk 0:00:17.6]} 28... Bxg2 {[%clk 0:02:04.5]} 29. Kxg2
{[%clk 0:00:18.5]} 29... c4 {[%clk 0:02:00.5]} 30. Rxc4 {[%clk 0:00:16.7]} 30...
Qxb5 {[%clk 0:01:59.6]} 31. d5 {[%clk 0:00:16.3]} 31... Rxa4 {[%clk 0:01:59.2]}
32. Qd4+ {[%clk 0:00:15.4]} 32... Kg8 {[%clk 0:01:57.3]} 33. bxa4 {[%clk
0:00:15.5]} 33... Qxa4 {[%clk 0:01:57.3]} 34. e5 {[%clk 0:00:16]} 34... Qxa2+
{[%clk 0:01:57.1]} 35. Kh3 {[%clk 0:00:16.4]} 35... dxe5 {[%clk 0:01:56.5]} 36.
fxe5 {[%clk 0:00:16.3]} 36... b3 {[%clk 0:01:45]} 37. Rb4 {[%clk 0:00:16.5]}
37... Qc2 {[%clk 0:01:34.4]} 38. d6 {[%clk 0:00:14.5]} 38... Ng7 {[%clk
0:01:32.4]} 39. d7 {[%clk 0:00:09.5]} 39... Rd8 {[%clk 0:01:31.7]} 40. Qd6
{[%clk 0:00:06.6]} 40... Qf5+ {[%clk 0:01:30.7]} 41. Kg2 {[%clk 0:00:06.3]}
41... Qc2+ {[%clk 0:01:20.5]} 42. Kf3 {[%clk 0:00:03.5]} 42... Nf5 {[%clk
0:01:17.9]} 43. Rb8 {[%clk 0:00:02.3]} 43... Qc3+ {[%clk 0:01:12.3]} 0-1

[Event "*** Titled Tuesday Blitz"]
[Site "Chess.com"]
[Date "2021.04.06"]
[Round "7"]
[White "maximnovik"]
[Black "A-Fier"]
[Result "0-1"]
[WhiteElo "2568"]
[BlackElo "2721"]
[TimeControl "180+1"]
[EndTime "11:17:56 PDT"]
[Termination "A-Fier won on time"]

1. Nf3 {[%clk 0:02:49.2]} 1... Nf6 {[%clk 0:02:59.2]} 2. g3 {[%clk 0:02:49.4]}
2... e6 {[%clk 0:03:00.1]} 3. Bg2 {[%clk 0:02:49.7]} 3... b6 {[%clk 0:03:00]} 4.
O-O {[%clk 0:02:49.9]} 4... Bb7 {[%clk 0:03:00.6]} 5. d3 {[%clk 0:02:50.1]} 5...
d5 {[%clk 0:03:00.3]} 6. Nbd2 {[%clk 0:02:49.9]} 6... Be7 {[%clk 0:02:59.6]} 7.
e4 {[%clk 0:02:50.2]} 7... dxe4 {[%clk 0:02:59.6]} 8. dxe4 {[%clk 0:02:49.7]}
8... O-O {[%clk 0:02:56.6]} 9. e5 {[%clk 0:02:49.1]} 9... Nfd7 {[%clk
0:02:53.7]} 10. Re1 {[%clk 0:02:49.5]} 10... c5 {[%clk 0:02:53.2]} 11. Qe2
{[%clk 0:02:43]} 11... Nc6 {[%clk 0:02:53.1]} 12. h4 {[%clk 0:02:42.5]} 12...
Qc7 {[%clk 0:02:53.3]} 13. Nf1 {[%clk 0:02:35.5]} 13... Nd4 {[%clk 0:02:52.2]}
14. Nxd4 {[%clk 0:02:34.6]} 14... cxd4 {[%clk 0:02:53.1]} 15. Bxb7 {[%clk
0:02:32.7]} 15... Qxb7 {[%clk 0:02:54]} 16. Bg5 {[%clk 0:02:25.7]} 16... Bb4
{[%clk 0:02:40.9]} 17. Red1 {[%clk 0:02:23]} 17... Bc5 {[%clk 0:02:37.3]} 18.
Nh2 {[%clk 0:02:18.3]} 18... Qd5 {[%clk 0:02:33.2]} 19. Nf3 {[%clk 0:02:14.7]}
19... f6 {[%clk 0:02:33.4]} 20. exf6 {[%clk 0:02:06.5]} 20... gxf6 {[%clk
0:02:34.3]} 21. Bh6 {[%clk 0:02:04.1]} 21... Rfe8 {[%clk 0:02:34.8]} 22. c3
{[%clk 0:02:03.3]} 22... e5 {[%clk 0:02:32.4]} 23. Nd2 {[%clk 0:01:39.4]} 23...
Kh8 {[%clk 0:02:23.5]} 24. cxd4 {[%clk 0:01:30.7]} 24... exd4 {[%clk 0:02:23.1]}
25. Qf3 {[%clk 0:01:30.8]} 25... Qxf3 {[%clk 0:02:10.8]} 26. Nxf3 {[%clk
0:01:30.7]} 26... Ne5 {[%clk 0:02:11.7]} 27. Kg2 {[%clk 0:01:31.2]} 27... Rad8
{[%clk 0:02:10.2]} 28. Bf4 {[%clk 0:01:02]} 28... Kg7 {[%clk 0:02:05.9]} 29. a3
{[%clk 0:00:53.8]} 29... a5 {[%clk 0:01:57.6]} 30. b4 {[%clk 0:00:48.5]} 30...
axb4 {[%clk 0:01:52.7]} 31. axb4 {[%clk 0:00:48.4]} 31... Bxb4 {[%clk
0:01:53.5]} 32. Nxd4 {[%clk 0:00:48.2]} 32... Kg6 {[%clk 0:01:50.2]} 33. h5+
{[%clk 0:00:19.7]} 33... Kxh5 {[%clk 0:01:42.6]} 34. Rh1+ {[%clk 0:00:18.3]}
34... Kg6 {[%clk 0:01:42.9]} 35. Rh6+ {[%clk 0:00:16.7]} 35... Kg7 {[%clk
0:01:43.2]} 36. Ra7+ {[%clk 0:00:11.6]} 36... Rd7 {[%clk 0:01:43.1]} 37. Nf5+
{[%clk 0:00:08.1]} 37... Kg8 {[%clk 0:01:42.2]} 38. Ra6 {[%clk 0:00:05.5]} 38...
Bc5 {[%clk 0:01:30.2]} 39. Rxf6 {[%clk 0:00:05.2]} 39... Ng4 {[%clk 0:01:30.3]}
40. Rc6 {[%clk 0:00:04.8]} 40... Rf8 {[%clk 0:01:10.2]} 41. Nh6+ {[%clk
0:00:03.7]} 41... Nxh6 {[%clk 0:01:10.9]} 42. Rxh6 {[%clk 0:00:03.3]} 42... Re8
{[%clk 0:01:06.4]} 0-1

[Event "*** Titled Tuesday Blitz"]
[Site "Chess.com"]
[Date "2021.04.06"]
[Round "7"]
[White "SargissyanSargis"]
[Black "MasterKroket"]
[Result "0-1"]
[WhiteElo "2376"]
[BlackElo "2518"]
[TimeControl "180+1"]
[EndTime "11:17:57 PDT"]
[Termination "MasterKroket won on time"]

1. e4 {[%clk 0:03:00.9]} 1... c5 {[%clk 0:03:00.2]} 2. Nf3 {[%clk 0:03:00.6]}
2... e6 {[%clk 0:03:00.8]} 3. d4 {[%clk 0:03:00.9]} 3... cxd4 {[%clk 0:03:01.7]}
4. Nxd4 {[%clk 0:03:01.5]} 4... Nc6 {[%clk 0:03:02.5]} 5. Nc3 {[%clk 0:03:02]}
5... Qc7 {[%clk 0:03:03]} 6. Be3 {[%clk 0:03:01.4]} 6... a6 {[%clk 0:03:03.6]}
7. f4 {[%clk 0:03:01.2]} 7... b5 {[%clk 0:03:03.5]} 8. Nxc6 {[%clk 0:02:55.5]}
8... Qxc6 {[%clk 0:03:04.4]} 9. Bd3 {[%clk 0:02:55.9]} 9... Bb7 {[%clk 0:03:05]}
10. O-O {[%clk 0:02:50.8]} 10... Nf6 {[%clk 0:03:04.8]} 11. a3 {[%clk
0:01:51.1]} 11... d5 {[%clk 0:02:59.6]} 12. exd5 {[%clk 0:01:48.6]} 12... Nxd5
{[%clk 0:02:59.5]} 13. Nxd5 {[%clk 0:01:49.1]} 13... Qxd5 {[%clk 0:02:59.4]} 14.
Qe2 {[%clk 0:01:48.5]} 14... Bc5 {[%clk 0:02:50.9]} 15. Bxc5 {[%clk 0:01:39.6]}
15... Qxc5+ {[%clk 0:02:51.8]} 16. Kh1 {[%clk 0:01:40.3]} 16... O-O {[%clk
0:02:50.6]} 17. f5 {[%clk 0:01:35.9]} 17... e5 {[%clk 0:02:39.2]} 18. f6 {[%clk
0:01:33.3]} 18... g6 {[%clk 0:02:39.4]} 19. Qg4 {[%clk 0:01:13.5]} 19... Rfd8
{[%clk 0:02:38.1]} 20. Rae1 {[%clk 0:01:01.1]} 20... Rd4 {[%clk 0:01:59.9]} 21.
Qg5 {[%clk 0:01:00.4]} 21... Re8 {[%clk 0:02:00.6]} 22. b4 {[%clk 0:00:43.4]}
22... Qd6 {[%clk 0:01:59.3]} 23. Re3 {[%clk 0:00:41.2]} 23... Kh8 {[%clk
0:01:27.8]} 24. Rh3 {[%clk 0:00:39.8]} 24... Qf8 {[%clk 0:01:19.4]} 25. Bxg6
{[%clk 0:00:37.2]} 25... fxg6 {[%clk 0:01:16.5]} 26. f7 {[%clk 0:00:37.2]} 26...
Re6 {[%clk 0:01:14.2]} 27. Rh4 {[%clk 0:00:07.5]} 27... Rxh4 {[%clk 0:00:56.9]}
28. Qxh4 {[%clk 0:00:06.3]} 28... Kg7 {[%clk 0:00:57]} 29. Qg5 {[%clk
0:00:01.7]} 29... Be4 {[%clk 0:00:49.7]} 30. Qg4 {[%clk 0:00:01.6]} 30... Bd5
{[%clk 0:00:48.1]} 31. Qg5 {[%clk 0:00:01.8]} 31... Bc4 {[%clk 0:00:43.7]} 32.
Qg4 {[%clk 0:00:01.9]} 32... Bxf1 {[%clk 0:00:41.9]} 0-1

[Event "*** Titled Tuesday Blitz"]
[Site "Chess.com"]
[Date "2021.04.06"]
[Round "7"]
[White "volunteers1998"]
[Black "MateusViageiro"]
[Result "0-1"]
[WhiteElo "2223"]
[BlackElo "2364"]
[TimeControl "180+1"]
[EndTime "11:17:57 PDT"]
[Termination "MateusViageiro won on time"]

1. e4 {[%clk 0:03:00.9]} 1... c5 {[%clk 0:02:58.5]} 2. Nf3 {[%clk 0:03:00.7]}
2... d6 {[%clk 0:02:58.9]} 3. d4 {[%clk 0:02:58.9]} 3... cxd4 {[%clk 0:02:58.4]}
4. Nxd4 {[%clk 0:02:57]} 4... Nf6 {[%clk 0:02:58.8]} 5. Nc3 {[%clk 0:02:54.9]}
5... a6 {[%clk 0:02:59.3]} 6. h3 {[%clk 0:02:52.4]} 6... e5 {[%clk 0:02:59.1]}
7. Nde2 {[%clk 0:02:49.6]} 7... h5 {[%clk 0:02:58.5]} 8. Bg5 {[%clk 0:02:42.6]}
8... Nbd7 {[%clk 0:02:57.9]} 9. Nd5 {[%clk 0:02:02]} 9... b5 {[%clk 0:02:51.5]}
10. Ng3 {[%clk 0:01:54.3]} 10... Bb7 {[%clk 0:02:49.9]} 11. Be2 {[%clk
0:01:46.8]} 11... Bxd5 {[%clk 0:02:46.8]} 12. exd5 {[%clk 0:01:44.1]} 12... Qa5+
{[%clk 0:02:39.2]} 13. Bd2 {[%clk 0:01:37.3]} 13... Qc7 {[%clk 0:02:33.2]} 14.
Nxh5 {[%clk 0:01:29.4]} 14... Nxh5 {[%clk 0:02:23.8]} 15. Bxh5 {[%clk
0:01:27.8]} 15... Rc8 {[%clk 0:02:23.2]} 16. Bf3 {[%clk 0:01:14.5]} 16... Qxc2
{[%clk 0:02:20.2]} 17. O-O {[%clk 0:00:58.7]} 17... Qxb2 {[%clk 0:02:13.9]} 18.
a4 {[%clk 0:00:55.3]} 18... Qd4 {[%clk 0:01:58.1]} 19. axb5 {[%clk 0:00:49.8]}
19... axb5 {[%clk 0:01:57.7]} 20. Qe2 {[%clk 0:00:46.6]} 20... Qc4 {[%clk
0:01:55.7]} 21. Rac1 {[%clk 0:00:40.4]} 21... Be7 {[%clk 0:01:48.7]} 22. Rxc4
{[%clk 0:00:39.5]} 22... bxc4 {[%clk 0:01:47.1]} 23. Rc1 {[%clk 0:00:39.6]}
23... O-O {[%clk 0:01:39.4]} 24. Rxc4 {[%clk 0:00:39.1]} 24... Nf6 {[%clk
0:01:38.3]} 25. Rxc8 {[%clk 0:00:36.7]} 25... Rxc8 {[%clk 0:01:37.7]} 26. Bg5
{[%clk 0:00:37.2]} 26... Nxd5 {[%clk 0:01:33.1]} 27. Bxe7 {[%clk 0:00:36.5]}
27... Nxe7 {[%clk 0:01:32.2]} 28. Qd2 {[%clk 0:00:34.5]} 28... Rd8 {[%clk
0:01:31.1]} 29. Bd5 {[%clk 0:00:31.2]} 29... Nf5 {[%clk 0:01:26.1]} 30. Qd3
{[%clk 0:00:24.1]} 30... Nd4 {[%clk 0:01:24.6]} 31. Qe4 {[%clk 0:00:22.4]} 31...
Rb8 {[%clk 0:01:19.2]} 32. f4 {[%clk 0:00:17.3]} 32... Re8 {[%clk 0:01:16.4]}
33. fxe5 {[%clk 0:00:15.4]} 33... dxe5 {[%clk 0:01:15.7]} 34. g4 {[%clk
0:00:13.8]} 34... Kf8 {[%clk 0:01:11]} 35. Kf2 {[%clk 0:00:12.8]} 35... g6
{[%clk 0:01:10.1]} 36. Ke3 {[%clk 0:00:11.8]} 36... Kg7 {[%clk 0:01:07.7]} 37.
Kf2 {[%clk 0:00:06.9]} 37... Re7 {[%clk 0:01:07.1]} 38. g5 {[%clk 0:00:05.7]}
38... Nf5 {[%clk 0:01:04.7]} 0-1

[Event "*** Titled Tuesday Blitz"]
[Site "Chess.com"]
[Date "2021.04.06"]
[Round "7"]
[White "prachiti01"]
[Black "Flopezin"]
[Result "0-1"]
[WhiteElo "2150"]
[BlackElo "2344"]
[TimeControl "180+1"]
[EndTime "11:17:57 PDT"]
[Termination "Flopezin won by checkmate"]

1. e4 {[%clk 0:03:00.9]} 1... e5 {[%clk 0:03:00.2]} 2. Nf3 {[%clk 0:03:00.5]}
2... Nc6 {[%clk 0:03:00.2]} 3. Bb5 {[%clk 0:03:00.4]} 3... a6 {[%clk 0:03:00.4]}
4. Ba4 {[%clk 0:03:00.1]} 4... Nf6 {[%clk 0:03:00.8]} 5. d3 {[%clk 0:03:00.1]}
5... Bc5 {[%clk 0:02:57.6]} 6. O-O {[%clk 0:02:59.7]} 6... b5 {[%clk 0:02:57.3]}
7. Bb3 {[%clk 0:02:58.6]} 7... d6 {[%clk 0:02:57.8]} 8. Nc3 {[%clk 0:02:57.8]}
8... Na5 {[%clk 0:02:40.5]} 9. Nd5 {[%clk 0:02:43.3]} 9... Nxb3 {[%clk
0:02:36.1]} 10. axb3 {[%clk 0:02:41]} 10... c6 {[%clk 0:02:35.6]} 11. Nxf6+
{[%clk 0:02:39.3]} 11... Qxf6 {[%clk 0:02:36.5]} 12. h3 {[%clk 0:02:36.5]} 12...
h6 {[%clk 0:02:35.3]} 13. Re1 {[%clk 0:02:34.4]} 13... O-O {[%clk 0:02:32.9]}
14. Be3 {[%clk 0:02:34.1]} 14... Bxe3 {[%clk 0:02:32]} 15. Rxe3 {[%clk
0:02:34.6]} 15... Re8 {[%clk 0:02:27.4]} 16. d4 {[%clk 0:02:33.7]} 16... exd4
{[%clk 0:02:11.9]} 17. Nxd4 {[%clk 0:02:31.9]} 17... Bb7 {[%clk 0:02:11.9]} 18.
c3 {[%clk 0:02:21]} 18... c5 {[%clk 0:02:11.7]} 19. Nf5 {[%clk 0:02:20.2]} 19...
Rxe4 {[%clk 0:02:02.3]} 20. Rxe4 {[%clk 0:02:13.8]} 20... Bxe4 {[%clk
0:02:03.2]} 21. Nxd6 {[%clk 0:02:12]} 21... Bc6 {[%clk 0:02:01.8]} 22. b4 {[%clk
0:02:02.2]} 22... cxb4 {[%clk 0:01:50.7]} 23. cxb4 {[%clk 0:02:01.2]} 23... Rd8
{[%clk 0:01:51.1]} 24. Rxa6 {[%clk 0:01:56.7]} 24... Rxd6 {[%clk 0:01:50.6]} 25.
Qe2 {[%clk 0:01:52.7]} 25... Re6 {[%clk 0:01:47.3]} 26. Qd2 {[%clk 0:01:49]}
26... Qg5 {[%clk 0:01:43.9]} 27. Qxg5 {[%clk 0:01:41.7]} 27... hxg5 {[%clk
0:01:44.8]} 28. Rb6 {[%clk 0:01:40.5]} 28... Kh7 {[%clk 0:01:37.6]} 29. Kh2
{[%clk 0:01:39.3]} 29... Kg6 {[%clk 0:01:38.1]} 30. Kg3 {[%clk 0:01:39.1]} 30...
Kf5 {[%clk 0:01:38.8]} 31. Rb8 {[%clk 0:01:35.8]} 31... Rd6 {[%clk 0:01:36.5]}
32. Rf8 {[%clk 0:01:32.7]} 32... Rd3+ {[%clk 0:01:35.5]} 33. f3 {[%clk
0:01:32.8]} 33... Bd5 {[%clk 0:01:35.9]} 34. Rd8 {[%clk 0:01:29.7]} 34... Bc4
{[%clk 0:01:35.6]} 35. Rc8 {[%clk 0:01:29.1]} 35... Rb3 {[%clk 0:01:35.3]} 36.
Rc6 {[%clk 0:01:26.2]} 36... Rxb4 {[%clk 0:01:34.2]} 37. Rc5+ {[%clk 0:01:21.9]}
37... Kg6 {[%clk 0:01:32.8]} 38. Kg4 {[%clk 0:01:16.6]} 38... f6 {[%clk
0:01:30.9]} 39. Kg3 {[%clk 0:01:12.7]} 39... Rxb2 {[%clk 0:01:30.1]} 40. h4
{[%clk 0:01:12.7]} 40... Bf1 {[%clk 0:01:29.8]} 41. hxg5 {[%clk 0:01:08.9]}
41... Rxg2+ {[%clk 0:01:30.2]} 42. Kh4 {[%clk 0:01:08.6]} 42... Rxg5 {[%clk
0:01:28.2]} 43. Rc1 {[%clk 0:01:03.8]} 43... Bd3 {[%clk 0:01:26.2]} 44. f4
{[%clk 0:01:03.4]} 44... Rd5 {[%clk 0:01:25.1]} 45. Rc7 {[%clk 0:00:59.4]} 45...
b4 {[%clk 0:01:24.4]} 46. Rb7 {[%clk 0:00:58.6]} 46... Rb5 {[%clk 0:01:24.5]}
47. Re7 {[%clk 0:00:57.1]} 47... b3 {[%clk 0:01:24.6]} 48. Re3 {[%clk 0:00:56]}
48... b2 {[%clk 0:01:24.3]} 49. Rxd3 {[%clk 0:00:55.6]} 49... b1=Q {[%clk
0:01:25.2]} 50. Rg3+ {[%clk 0:00:55.1]} 50... Kf7 {[%clk 0:01:25.6]} 51. f5
{[%clk 0:00:51.9]} 51... Qxf5 {[%clk 0:01:24.9]} 52. Rg4 {[%clk 0:00:45.2]}
52... Qh5+ {[%clk 0:01:23.5]} 53. Kg3 {[%clk 0:00:44.9]} 53... Rb3+ {[%clk
0:01:24]} 54. Kf4 {[%clk 0:00:43.1]} 54... Rb4+ {[%clk 0:01:23.3]} 55. Ke3
{[%clk 0:00:41.6]} 55... Qxg4 {[%clk 0:01:23.9]} 56. Kd3 {[%clk 0:00:41.1]}
56... Qf3+ {[%clk 0:01:23.8]} 57. Kc2 {[%clk 0:00:40.9]} 57... Rg4 {[%clk
0:01:23.8]} 58. Kd2 {[%clk 0:00:40]} 58... Rg2+ {[%clk 0:01:23.8]} 59. Ke1
{[%clk 0:00:39.8]} 59... Qe2# {[%clk 0:01:24.3]} 0-1

[Event "*** Titled Tuesday Blitz"]
[Site "Chess.com"]
[Date "2021.04.06"]
[Round "7"]
[White "MerryPoppies"]
[Black "dpopadic"]
[Result "1-0"]
[WhiteElo "2156"]
[BlackElo "2301"]
[TimeControl "180+1"]
[EndTime "11:17:57 PDT"]
[Termination "MerryPoppies won on time"]

1. d4 {[%clk 0:03:00.9]} 1... Nf6 {[%clk 0:02:59.3]} 2. c4 {[%clk 0:03:01.5]}
2... g6 {[%clk 0:02:58.6]} 3. Nc3 {[%clk 0:03:02.1]} 3... Bg7 {[%clk 0:02:58.2]}
4. Nf3 {[%clk 0:03:02.5]} 4... d6 {[%clk 0:02:58.8]} 5. e4 {[%clk 0:03:02.7]}
5... O-O {[%clk 0:02:59.4]} 6. h3 {[%clk 0:03:03.2]} 6... e5 {[%clk 0:02:59.6]}
7. d5 {[%clk 0:03:03.3]} 7... a5 {[%clk 0:02:59.1]} 8. Be3 {[%clk 0:03:03.7]}
8... Na6 {[%clk 0:02:59.1]} 9. Rb1 {[%clk 0:03:03.2]} 9... Nh5 {[%clk 0:02:55]}
10. g4 {[%clk 0:02:41.5]} 10... Nf4 {[%clk 0:02:53.9]} 11. Ne2 {[%clk
0:02:32.1]} 11... Nxe2 {[%clk 0:02:43.8]} 12. Bxe2 {[%clk 0:02:30.1]} 12... Nc5
{[%clk 0:02:43.6]} 13. Bxc5 {[%clk 0:02:23]} 13... dxc5 {[%clk 0:02:43]} 14. Qd2
{[%clk 0:02:14]} 14... Bd7 {[%clk 0:02:38.5]} 15. g5 {[%clk 0:02:04.5]} 15... f5
{[%clk 0:02:19.3]} 16. gxf6 {[%clk 0:02:03]} 16... Qxf6 {[%clk 0:02:09]} 17. h4
{[%clk 0:02:01.6]} 17... Bg4 {[%clk 0:01:56.2]} 18. Ng5 {[%clk 0:01:44.3]} 18...
Qxf2+ {[%clk 0:01:52.9]} 19. Kd1 {[%clk 0:01:44.9]} 19... Bxe2+ {[%clk
0:01:39.8]} 20. Qxe2 {[%clk 0:01:45.8]} 20... Qd4+ {[%clk 0:01:38.5]} 21. Ke1
{[%clk 0:01:36.6]} 21... Rf4 {[%clk 0:01:06.3]} 22. Rd1 {[%clk 0:01:24.2]} 22...
Bh6 {[%clk 0:00:46.2]} 23. Rxd4 {[%clk 0:01:22.2]} 23... cxd4 {[%clk 0:00:45.9]}
24. Ne6 {[%clk 0:01:16.9]} 24... Rf7 {[%clk 0:00:41.2]} 25. Rf1 {[%clk
0:01:16.2]} 25... Bf4 {[%clk 0:00:24.6]} 26. Nxf4 {[%clk 0:01:13.7]} 26... exf4
{[%clk 0:00:24.1]} 27. Qd3 {[%clk 0:01:12.2]} 27... c5 {[%clk 0:00:19.7]} 28.
dxc6 {[%clk 0:01:10.4]} 28... Rd8 {[%clk 0:00:19]} 29. cxb7 {[%clk 0:01:06.8]}
29... Rxb7 {[%clk 0:00:18.7]} 30. b3 {[%clk 0:01:06.3]} 30... Rf7 {[%clk
0:00:17.3]} 31. c5 {[%clk 0:00:57.7]} 31... Kg7 {[%clk 0:00:15.2]} 32. Ke2
{[%clk 0:00:52.9]} 32... h6 {[%clk 0:00:15.1]} 33. Kf3 {[%clk 0:00:53]} 33... g5
{[%clk 0:00:15]} 34. Rg1 {[%clk 0:00:51.8]} 34... Rh8 {[%clk 0:00:01.4]} 35.
Qxd4+ {[%clk 0:00:45.6]} 1-0

[Event "*** Titled Tuesday Blitz"]
[Site "Chess.com"]
[Date "2021.04.06"]
[Round "7"]
[White "Vincent_Vega95"]
[Black "MaevskiyNikolay"]
[Result "1-0"]
[WhiteElo "2711"]
[BlackElo "2564"]
[TimeControl "180+1"]
[EndTime "11:17:58 PDT"]
[Termination "Vincent_Vega95 won by resignation"]

1. Nf3 {[%clk 0:03:00.9]} 1... Nc6 {[%clk 0:02:58.6]} 2. g3 {[%clk 0:03:01.6]}
2... d5 {[%clk 0:02:58.1]} 3. d4 {[%clk 0:03:01.3]} 3... Bf5 {[%clk 0:02:57.7]}
4. Bg2 {[%clk 0:03:01.5]} 4... Nb4 {[%clk 0:02:57.9]} 5. Na3 {[%clk 0:03:01.3]}
5... e6 {[%clk 0:02:58]} 6. c3 {[%clk 0:03:01.2]} 6... Na6 {[%clk 0:02:56.9]} 7.
b4 {[%clk 0:03:00.5]} 7... c6 {[%clk 0:02:56.1]} 8. O-O {[%clk 0:02:59.9]} 8...
Nf6 {[%clk 0:02:55.9]} 9. Bg5 {[%clk 0:02:56.5]} 9... Be7 {[%clk 0:02:55.3]} 10.
Bxf6 {[%clk 0:02:52.5]} 10... Bxf6 {[%clk 0:02:54.9]} 11. Nd2 {[%clk 0:02:46.7]}
11... O-O {[%clk 0:02:41.6]} 12. e4 {[%clk 0:02:46.8]} 12... dxe4 {[%clk
0:02:41.8]} 13. Bxe4 {[%clk 0:02:44.9]} 13... Bxe4 {[%clk 0:02:29.7]} 14. Nxe4
{[%clk 0:02:43.9]} 14... Nc7 {[%clk 0:02:29.8]} 15. Re1 {[%clk 0:02:42.3]} 15...
Nd5 {[%clk 0:02:28.6]} 16. Qf3 {[%clk 0:02:42.8]} 16... Be7 {[%clk 0:02:23.6]}
17. Nc4 {[%clk 0:02:43.4]} 17... b6 {[%clk 0:02:10]} 18. a4 {[%clk 0:02:41.9]}
18... Qc7 {[%clk 0:01:38]} 19. h4 {[%clk 0:02:39.6]} 19... c5 {[%clk 0:01:32.2]}
20. dxc5 {[%clk 0:02:38.9]} 20... bxc5 {[%clk 0:01:31.9]} 21. b5 {[%clk
0:02:39.5]} 21... Rab8 {[%clk 0:01:24.7]} 22. Reb1 {[%clk 0:02:29]} 22... f5
{[%clk 0:01:12.4]} 23. Ned2 {[%clk 0:02:28.8]} 23... Bf6 {[%clk 0:01:11.4]} 24.
Ra3 {[%clk 0:02:29.1]} 24... Qd7 {[%clk 0:00:57]} 25. Na5 {[%clk 0:02:15.1]}
25... e5 {[%clk 0:00:53.4]} 26. Nc6 {[%clk 0:02:14.4]} 26... Rbc8 {[%clk
0:00:50.4]} 27. Qd3 {[%clk 0:02:10.2]} 27... e4 {[%clk 0:00:41.3]} 28. Qc4
{[%clk 0:02:10.5]} 28... Qf7 {[%clk 0:00:39.2]} 29. Nf1 {[%clk 0:02:08.1]} 29...
Rfe8 {[%clk 0:00:35.5]} 30. Rd1 {[%clk 0:02:06.2]} 30... Nb6 {[%clk 0:00:28.8]}
31. Qxf7+ {[%clk 0:02:03.9]} 31... Kxf7 {[%clk 0:00:28.1]} 32. Ne3 {[%clk
0:02:03.8]} 32... Rc7 {[%clk 0:00:18.9]} 33. a5 {[%clk 0:02:02.1]} 33... Nc8
{[%clk 0:00:18.6]} 34. Nxf5 {[%clk 0:01:48.7]} 34... Re6 {[%clk 0:00:18.2]} 35.
c4 {[%clk 0:01:46.6]} 35... Rexc6 {[%clk 0:00:18.2]} 36. bxc6 {[%clk 0:01:45.9]}
36... Rxc6 {[%clk 0:00:18.7]} 37. Rb3 {[%clk 0:01:29]} 37... g6 {[%clk 0:00:19]}
38. Rb7+ {[%clk 0:01:27]} 38... Ke6 {[%clk 0:00:19]} 39. Ne3 {[%clk 0:01:19.9]}
39... Be7 {[%clk 0:00:15]} 40. Rdd7 {[%clk 0:01:06.6]} 40... Ra6 {[%clk
0:00:13]} 41. Rdc7 {[%clk 0:01:05.6]} 41... Nd6 {[%clk 0:00:07.1]} 42. Rxe7+
{[%clk 0:01:05]} 42... Kf6 {[%clk 0:00:07.7]} 43. Rxa7 {[%clk 0:01:04.4]} 43...
Rc6 {[%clk 0:00:07.2]} 44. Rec7 {[%clk 0:01:04.4]} 44... Rxc7 {[%clk 0:00:06.9]}
45. Rxc7 {[%clk 0:01:05]} 1-0